Workbook

Sheet Calc
B2: Moving Load Calculator | I2: Input & Output
B3: Two Equal Point Loads | I3: α | J3: a | K3: Mmax
B4: P | C4: 10 | D4: kip | J4: ft | K4: kip-ft
B5: L | C5: 20 | D5: ft | I5: 0 | J5: =I5*($C$5-$C$6) -> 0
B6: Spacing | C6: 4 | D6: ft | I6: 0.05 | J6: =I6*($C$5-$C$6) -> 0.8
B7: a | C7: 1 | D7: ft | I7: =I6+0.05 -> 0.1 | J7: 1.6
B8: b | C8: =C5-C7-C6 -> 15 | D8: ft | I8: =I7+0.05 -> 0.15 | J8: 2.4
I9: =I8+0.05 -> 0.2 | J9: 3.2
B10: R1 | C10: =C4/C5*(C5-C7+C8) -> 17 | D10: kip | I10: =I9+0.05 -> 0.25 | J10: 4
B11: R2 | C11: =C4/C5*(C5-C8+C7) -> 3 | D11: kip | I11: =I10+0.05 -> 0.3 | J11: 4.8
I12: =I11+0.05 -> 0.35 | J12: 5.6
B13: M1 | C13: =C10*C7 -> 17 | D13: kip-ft | I13: =I12+0.05 -> 0.4 | J13: 6.4
B14: M2 | C14: =C11*C8 -> 45 | D14: kip-ft | I14: =I13+0.05 -> 0.45 | J14: 7.2
B15: Mmax | C15: =MAX(C13:C14) -> 45 | D15: kip-ft | I15: =I14+0.05 -> 0.5 | J15: 8
I16: =I15+0.05 -> 0.55 | J16: 8.8
I17: =I16+0.05 -> 0.6 | J17: 9.6
I18: =I17+0.05 -> 0.65 | J18: 10.4
I19: =I18+0.05 -> 0.7 | J19: 11.2
I20: =I19+0.05 -> 0.75 | J20: 12
I21: =I20+0.05 -> 0.8 | J21: 12.8
I22: =I21+0.05 -> 0.85 | J22: 13.6
I23: =I22+0.05 -> 0.9 | J23: 14.4
I24: =I23+0.05 -> 0.95 | J24: 15.2
I25: =I24+0.05 -> 1 | J25: 16
